bitfinex/quotes_BTCUSD_20250620
["timestamp","ask_amount","ask_price","bid_price","bid_amount"]
[1750385008373,1.32451376,104920.0,104910.0,0.67451974]
[1750385008591,1.21966395,104920.0,104910.0,0.68405126]
[1750385008818,1.21966395,104920.0,104910.0,0.69358206]
[1750385009041,1.01681334,104920.0,104910.0,0.69358206]
[1750385009251,1.18042386,104920.0,104910.0,0.69358206]
[1750385010435,1.17089343,104920.0,104910.0,0.69358206]
[1750385010679,0.667283,104920.0,104910.0,0.69358206]
[1750385014747,0.67681343,104920.0,104910.0,0.69358206]
[1750385015297,0.68634395,104920.0,104910.0,0.69358206]
[1750385015522,0.67681334,104920.0,104910.0,0.69358206]
[1750385016397,0.667283,104920.0,104910.0,0.69358206]
[1750385022232,0.667283,104920.0,104910.0,0.36320222]
[1750385022478,0.667283,104920.0,104910.0,0.84758206]
[1750385028241,0.00953025,104920.0,104910.0,0.84758206]
[1750385028462,0.70540218,104930.0,104920.0,0.26344334]
[1750385028632,0.70540218,104930.0,104920.0,0.59382318]
[1750385029828,0.70540218,104930.0,104920.0,0.59482318]
[1750385030257,0.70540218,104930.0,104920.0,0.58529275]
[1750385030466,0.71493234,104930.0,104920.0,0.58529275]
[1750385030679,0.70540218,104930.0,104920.0,0.59482318]
[1750385030883,0.70540218,104930.0,104920.0,0.59482327]
[1750385033340,0.67681252,104930.0,104920.0,0.59482327]
[1750385033964,0.67681252,104930.0,104920.0,0.6043537]
[1750385034164,0.67681243,104930.0,104920.0,0.6043537]
[1750385034605,0.67681234,104930.0,104920.0,0.6043537]
[1750385036543,0.68634177,104930.0,104920.0,0.6043537]
[1750385038089,0.67681234,104930.0,104920.0,0.6043537]
[1750385040077,0.68634186,104930.0,104920.0,0.59482327]
[1750385040511,0.68634186,104930.0,104920.0,0.58529275]
[1750385041385,0.68634186,104930.0,104920.0,0.59482327]
[1750385041631,0.67681234,104930.0,104920.0,0.6043537]
[1750385041849,0.68634186,104930.0,104920.0,0.59482327]
[1750385042070,0.67681234,104930.0,104920.0,0.59482327]
[1750385042258,0.67681234,104930.0,104920.0,0.6043537]
[1750385042525,0.68634186,104930.0,104920.0,0.59482327]
[1750385042742,0.68634177,104930.0,104920.0,0.59482327]
[1750385042873,0.68634177,104930.0,104920.0,0.6043537]
[1750385043098,0.67681234,104930.0,104920.0,0.6043537]
[1750385044373,0.67681234,104930.0,104920.0,0.59482327]
[1750385044814,0.67681234,104930.0,104920.0,0.6043537]
[1750385045270,0.667283,104930.0,104920.0,0.6043537]
[1750385045490,0.67681234,104930.0,104920.0,0.6043537]
[1750385045905,0.67681234,104930.0,104920.0,0.59482327]
[1750385046577,0.68634177,104930.0,104920.0,0.59482327]
[1750385047059,0.69587129,104930.0,104920.0,0.58529275]
[1750385047273,0.69587129,104930.0,104920.0,0.58529284]
[1750385047722,0.69587129,104930.0,104920.0,0.59482345]
[1750385047941,0.68634177,104930.0,104920.0,0.6138844]
[1750385048819,0.67681234,104930.0,104920.0,0.6138844]
[1750385049913,0.667283,104930.0,104920.0,0.6138844]
[1750385050362,0.667283,104930.0,104920.0,0.60435397]
[1750385050570,0.67681234,104930.0,104920.0,0.6138844]
[1750385050978,0.67681234,104930.0,104920.0,0.60435397]
[1750385051864,0.67681234,104930.0,104920.0,0.6138844]
[1750385052305,0.667283,104930.0,104920.0,0.6138844]
[1750385052543,0.67681243,104930.0,104920.0,0.6138844]
[1750385052763,0.667283,104930.0,104920.0,0.6138844]
[1750385053228,0.67681234,104930.0,104920.0,0.6138844]
[1750385053450,0.667283,104930.0,104920.0,0.6138844]
[1750385054589,0.67681243,104930.0,104920.0,0.6138844]
[1750385055011,0.67681243,104930.0,104920.0,0.60435397]
[1750385055919,0.67681243,104930.0,104920.0,0.58529284]
[1750385056139,0.67681243,104930.0,104920.0,0.59482345]
[1750385056572,0.67681243,104930.0,104920.0,0.60435397]
[1750385057230,0.667283,104930.0,104920.0,0.60435397]
[1750385057450,0.67681234,104930.0,104920.0,0.6138844]
[1750385058732,0.68634186,104930.0,104920.0,0.60435397]
[1750385058943,0.68634186,104930.0,104920.0,0.59482345]
[1750385059575,0.68634186,104930.0,104920.0,0.58529284]
[1750385059780,0.68634186,104930.0,104920.0,0.59482345]
[1750385060217,0.67681234,104930.0,104920.0,0.60435397]
[1750385060430,0.68634186,104930.0,104920.0,0.60435397]
[1750385060699,0.68634186,104930.0,104920.0,0.58529284]
[1750385060919,0.68634186,104930.0,104920.0,0.59482345]
[1750385061562,0.68634186,104930.0,104920.0,0.58529284]
[1750385062280,0.68634186,104930.0,104920.0,0.59482345]
[1750385062924,0.68634186,104930.0,104920.0,0.58529284]
[1750385064474,0.68634186,104930.0,104920.0,0.59482345]
[1750385065573,0.69587147,104930.0,104920.0,0.58529284]
[1750385065828,1.03578101,104930.0,104920.0,0.35499249]
[1750385066041,1.03578156,104930.0,104920.0,0.34546142]
[1750385066264,1.23591488,104930.0,104920.0,0.19162142]
[1750385066481,1.23811567,104930.0,104920.0,0.20115249]
[1750385066701,1.23811567,104930.0,104920.0,0.19162142]
[1750385067346,0.90773583,104930.0,104920.0,0.19162142]
[1750385067562,1.23811567,104930.0,104920.0,0.19162142]
[1750385067989,1.23811567,104930.0,104920.0,0.20115249]
[1750385068475,1.22858606,104930.0,104920.0,0.20115249]
[1750385068694,1.22858606,104930.0,104920.0,0.19162142]
[1750385069605,1.20952647,104930.0,104920.0,0.19162142]
[1750385071182,1.20058357,104930.0,104920.0,0.20115249]
[1750385071390,1.20952524,104930.0,104920.0,0.22215249]
[1750385071832,1.20058357,104930.0,104920.0,0.21262142]
[1750385072056,1.40264513,104930.0,104920.0,0.22215249]
[1750385072265,1.20952513,104930.0,104920.0,0.21262142]
[1750385072478,1.40264513,104930.0,104920.0,0.21262142]
[1750385073309,1.20952513,104930.0,104920.0,0.21262142]
[1750385073568,1.40264513,104930.0,104920.0,0.21262142]
[1750385073779,1.20952513,104930.0,104920.0,0.21262142]
[1750385074430,1.40264513,104930.0,104920.0,0.21262142]
[1750385075100,1.40264513,104930.0,104920.0,0.19162142]
[1750385075765,1.49792406,104930.0,104920.0,0.001]
[1750385076038,1.54066406,104930.0,104920.0,0.001]
[1750385076247,1.5316825,104930.0,104920.0,0.001]
[1750385076459,1.5406233,104930.0,104920.0,0.001]
[1750385077101,1.8806233,104930.0,104920.0,0.001]
[1750385077609,1.88062313,104930.0,104920.0,0.001]
[1750385078396,1.85972313,104930.0,104920.0,0.001]
[1750385078831,1.88096313,104930.0,104920.0,0.001]
[1750385079270,1.70000313,104930.0,104920.0,0.001]
[1750385080169,1.67880313,104930.0,104920.0,0.001]
[1750385080392,1.6480625,104930.0,104920.0,0.001]
[1750385080609,1.65699983,104930.0,104920.0,0.001]
[1750385085526,1.69963983,104930.0,104920.0,0.001]
[1750385085749,1.65703983,104930.0,104920.0,0.001]
[1750385086188,1.65703786,104930.0,104920.0,0.001]
[1750385086411,1.65699786,104930.0,104920.0,0.001]
[1750385087765,1.65695786,104930.0,104920.0,0.001]
[1750385087978,1.32657802,104930.0,104920.0,0.023]
[1750385088194,1.65695786,104930.0,104920.0,0.023]
[1750385089077,1.65695751,104930.0,104920.0,0.023]
[1750385091964,1.65695766,104930.0,104920.0,0.023]
[1750385092266,1.65695766,104930.0,104920.0,0.0432]
[1750385097039,1.65695766,104930.0,104920.0,0.023]
[1750385097482,1.65695766,104930.0,104920.0,0.001]
[1750385097704,1.65695963,104930.0,104920.0,0.001]
[1750385099313,1.69975963,104930.0,104920.0,0.001]
[1750385099521,1.69979963,104930.0,104920.0,0.001]
[1750385099719,1.65695963,104930.0,104920.0,0.001]
[1750385100198,1.69975963,104930.0,104920.0,0.001]
[1750385100398,1.6908625,104930.0,104920.0,0.001]
[1750385100601,1.69980121,104930.0,104920.0,0.001]
[1750385100847,1.65700121,104930.0,104920.0,0.001]
[1750385101569,1.65696121,104930.0,104920.0,0.001]
[1750385103834,1.65696121,104930.0,104920.0,0.0221]
[1750385106609,1.32658137,104930.0,104920.0,0.0221]
[1750385106813,1.65696121,104930.0,104920.0,0.0221]
[1750385108770,1.65696604,104930.0,104920.0,0.0221]
[1750385109292,1.65696604,104930.0,104920.0,0.0442]
[1750385109516,1.4952515,104930.0,104920.0,0.0442]
[1750385110224,1.4952518,104930.0,104920.0,0.0442]
[1750385114169,1.4952518,104930.0,104920.0,0.0221]
[1750385114389,1.49525241,104930.0,104920.0,0.0221]
[1750385114617,1.49525241,104930.0,104920.0,0.001]
[1750385115347,2.06629151,104930.0,104920.0,0.001]
[1750385115572,1.61293453,104930.0,104920.0,0.001]
[1750385117466,1.60622586,104930.0,104920.0,0.001]
[1750385117934,1.60621826,104930.0,104920.0,0.001]
[1750385118840,1.60617826,104930.0,104920.0,0.001]
[1750385119070,1.60621826,104930.0,104920.0,0.001]
[1750385119866,1.781568,104930.0,104920.0,0.001]
[1750385120116,2.04480797,104930.0,104920.0,0.001]
[1750385120296,1.63096717,104930.0,104920.0,0.001]
[1750385120555,1.65306717,104930.0,104920.0,0.001]
[1750385120726,1.62951812,104930.0,104920.0,0.001]
[1750385120964,1.0265153,104920.0,104910.0,0.0437]
[1750385121166,1.61539419,104920.0,104910.0,0.0437]
[1750385121811,1.64404119,104920.0,104910.0,0.0437]
[1750385123052,1.64404095,104920.0,104910.0,0.04486]
[1750385123278,1.64404095,104920.0,104910.0,0.04586]
[1750385123490,1.31366111,104920.0,104910.0,0.04586]
[1750385123700,1.64404095,104920.0,104910.0,0.04586]
[1750385124494,1.6131451,104920.0,104910.0,0.04586]
[1750385125115,1.4588651,104920.0,104910.0,0.04586]
[1750385125325,1.46839598,104920.0,104910.0,0.04586]
[1750385125533,1.67140677,104920.0,104910.0,0.23649959]
[1750385125762,1.66246689,104920.0,104910.0,0.23649959]
[1750385125961,1.6713995,104920.0,104910.0,0.23649959]
[1750385126165,1.6713995,104920.0,104910.0,0.04586]
[1750385127011,1.67139915,104920.0,104910.0,0.04586]
[1750385127617,1.67139915,104920.0,104910.0,0.23649959]
[1750385127992,1.67139915,104920.0,104910.0,0.04586]
[1750385128211,1.67143915,104920.0,104910.0,0.04586]
[1750385128759,1.67143773,104920.0,104910.0,0.04586]
[1750385131204,1.66250689,104920.0,104910.0,0.04586]
[1750385131419,1.34105725,104920.0,104910.0,0.04586]
[1750385131697,1.67143709,104920.0,104910.0,0.04586]
[1750385132592,1.67143709,104920.0,104910.0,0.23649959]
[1750385132823,0.94738468,104920.0,104910.0,0.56687943]
[1750385133047,0.99752047,104920.0,104910.0,0.59547426]
[1750385133285,0.84312047,104920.0,104910.0,0.59547426]
[1750385133530,0.85265145,104920.0,104910.0,0.59547426]
[1750385133746,0.85265145,104920.0,104910.0,0.59547444]
[1750385133970,0.85265145,104920.0,104910.0,0.60500587]
[1750385134199,1.03374262,104920.0,104910.0,0.59547444]
[1750385135541,1.04327369,104920.0,104910.0,0.60500587]
[1750385135771,1.03374317,104920.0,104910.0,0.60500587]
[1750385139304,1.03126317,104920.0,104910.0,0.60500587]
[1750385139536,0.51495565,104920.0,104910.0,0.61453721]
[1750385139981,0.50542467,104920.0,104910.0,0.61453721]
[1750385141972,0.51495456,104920.0,104910.0,0.61453721]
[1750385143282,0.52448544,104920.0,104910.0,0.61453721]
[1750385144145,0.53401642,104920.0,104910.0,0.61453721]
[1750385148976,0.72463784,104920.0,104910.0,0.61453721]
[1750385149401,0.53401642,104920.0,104910.0,0.61453721]
[1750385151888,0.51495456,104920.0,104910.0,0.61453721]
[1750385153652,0.52448544,104920.0,104910.0,0.61453721]
[1750385154309,0.72463793,104920.0,104910.0,0.61453721]
[1750385155170,0.53401651,104920.0,104910.0,0.61453721]
[1750385155395,0.52448544,104920.0,104910.0,0.61453721]
[1750385156471,0.53401642,104920.0,104910.0,0.61453721]
[1750385157330,0.72463784,104920.0,104910.0,0.61453721]
[1750385158678,0.52448544,104920.0,104910.0,0.61453721]
[1750385158932,0.51495456,104920.0,104910.0,0.61453721]
[1750385160057,0.5104929,104920.0,104910.0,0.61453721]
[1750385160507,0.52002378,104920.0,104910.0,0.61453721]
[1750385160732,0.5104929,104920.0,104910.0,0.61453721]
[1750385164312,0.51049281,104920.0,104910.0,0.61453721]
[1750385164531,0.50096211,104920.0,104910.0,0.28415737]
[1750385164739,0.5200236,104920.0,104910.0,0.61453721]
[1750385164949,0.52002351,104920.0,104910.0,0.61453721]
[1750385165159,0.51049272,104920.0,104910.0,0.61453721]
[1750385165385,0.52002351,104920.0,104910.0,0.61453721]
[1750385166020,0.52002342,104920.0,104910.0,0.61453721]
[1750385167985,0.5295543,104920.0,104910.0,0.61453721]
[1750385169353,0.52955512,104920.0,104910.0,0.60500587]
[1750385169590,0.720177,104920.0,104910.0,0.60500587]
[1750385170431,0.720177,104920.0,104910.0,0.61453721]
[1750385173835,0.52955558,104920.0,104910.0,0.61453721]
[1750385174043,0.52002451,104920.0,104910.0,0.61453721]
[1750385175122,0.71064593,104920.0,104910.0,0.61453721]
[1750385177054,0.720177,104920.0,104910.0,0.61453721]
[1750385178323,0.720177,104920.0,104910.0,0.60953721]
[1750385183668,0.52002451,104920.0,104910.0,0.60953721]
[1750385186184,0.71064593,104920.0,104910.0,0.60953721]
[1750385187287,0.720177,104920.0,104910.0,0.60953721]
[1750385187936,0.720177,104920.0,104910.0,0.60000587]
[1750385188819,0.52002451,104920.0,104910.0,0.60000587]
[1750385189042,0.52002451,104920.0,104910.0,0.60953721]
[1750385189977,0.51049353,104920.0,104910.0,0.60953721]
[1750385192203,0.52002451,104920.0,104910.0,0.60953721]
[1750385198219,0.71064593,104920.0,104910.0,0.60953721]
[1750385198663,0.720177,104920.0,104910.0,0.60000587]
[1750385198884,0.71064639,104920.0,104910.0,0.59047444]
[1750385199750,0.70111569,104920.0,104910.0,0.59047444]
[1750385199973,0.70111569,104920.0,104910.0,0.58094292]
[1750385200188,0.70111569,104920.0,104910.0,0.57141131]
[1750385200410,0.69158481,104920.0,104910.0,0.5714114]
[1750385200633,0.68205383,104920.0,104910.0,0.5714114]
[1750385200850,0.67252276,104920.0,104910.0,0.37123984]
[1750385201054,0.68146728,104920.0,104910.0,0.37123984]
[1750385201711,0.68146728,104920.0,104910.0,0.5714114]
[1750385202633,0.68146721,104920.0,104910.0,0.5714114]
[1750385203561,0.67252276,104920.0,104910.0,0.5714114]
[1750385203704,0.68146721,104920.0,104910.0,0.5714114]
[1750385203913,0.68146721,104920.0,104910.0,0.001]
[1750385204133,1.72593567,104920.0,104910.0,0.001]
[1750385204358,1.43869583,104920.0,104910.0,0.001]
[1750385204904,1.34342598,104920.0,104910.0,0.001]
[1750385205218,1.34342656,104920.0,104910.0,0.001]
[1750385205415,1.34282656,104920.0,104910.0,0.001]
[1750385206436,2.01316638,104920.0,104910.0,0.001]
[1750385206660,1.70572613,104920.0,104910.0,0.001]
[1750385206860,1.70572627,104920.0,104910.0,0.001]
[1750385207676,1.69678112,104920.0,104910.0,0.001]
[1750385207879,1.70571952,104920.0,104910.0,0.001]
[1750385208286,1.68277993,104920.0,104910.0,0.001]
[1750385208491,1.68281993,104920.0,104910.0,0.001]
[1750385209949,1.77808978,104920.0,104910.0,0.001]
[1750385210581,1.52916959,104920.0,104910.0,0.001]
[1750385211735,1.52912959,104920.0,104910.0,0.001]
[1750385212155,1.52916959,104920.0,104910.0,0.001]
[1750385213775,1.53016959,104920.0,104910.0,0.001]
[1750385214453,1.53012959,104920.0,104910.0,0.001]
[1750385214877,1.52119119,104920.0,104910.0,0.001]
[1750385215086,1.62543488,104920.0,104910.0,0.001]
[1750385215324,1.53016503,104920.0,104910.0,0.001]
[1750385216387,1.53012503,104920.0,104910.0,0.001]
[1750385217492,1.50802503,104920.0,104910.0,0.001]
[1750385219991,1.48602503,104920.0,104910.0,0.001]
[1750385220477,1.48602402,104920.0,104910.0,0.001]
[1750385222018,1.57558789,104920.0,104910.0,0.001]
[1750385222959,1.48602402,104920.0,104910.0,0.001]
[1750385223257,1.83670386,104920.0,104910.0,0.001]
[1750385223457,1.50632402,104920.0,104910.0,0.001]
[1750385223662,1.00176418,104920.0,104910.0,0.001]
[1750385223869,1.48602402,104920.0,104910.0,0.0464]
[1750385224273,1.48602468,104920.0,104910.0,0.0464]
[1750385228398,1.48602732,104920.0,104910.0,0.0464]
[1750385229261,1.48602775,104920.0,104910.0,0.0464]
[1750385232040,1.48603028,104920.0,104910.0,0.0464]
[1750385233112,1.50892054,104920.0,104910.0,0.001]
[1750385233330,1.50892093,104920.0,104910.0,0.001]
[1750385233549,1.83930077,104920.0,104910.0,0.001]
[1750385233949,1.85719212,104920.0,104910.0,0.001]
[1750385234891,1.85719831,104920.0,104910.0,0.001]
[1750385235537,1.95246816,104920.0,104910.0,0.001]
[1750385239497,1.95246662,104920.0,104910.0,0.001]
[1750385239925,1.85719677,104920.0,104910.0,0.001]
[1750385240671,1.52681693,104920.0,104910.0,0.001]
[1750385240914,1.52681693,104920.0,104910.0,0.0434]
[1750385243507,1.5268154,104920.0,104910.0,0.0434]
[1750385244713,1.5268154,104920.0,104910.0,0.001]
[1750385245895,1.50392514,104920.0,104910.0,0.001]
[1750385246110,1.52682309,104920.0,104910.0,0.001]
[1750385246327,1.62209263,104920.0,104910.0,0.001]
[1750385246801,1.52682278,104920.0,104910.0,0.0229]
[1750385247014,1.85720262,104920.0,104910.0,0.0229]
[1750385250065,1.19644294,104920.0,104910.0,0.0229]
[1750385250298,1.85720262,104920.0,104910.0,0.0229]
[1750385251243,1.52678278,104920.0,104910.0,0.04607]
[1750385252309,1.49994914,104920.0,104910.0,0.04607]
[1750385252566,1.34610914,104920.0,104910.0,0.04607]
[1750385252783,1.49994914,104920.0,104910.0,0.04607]
[1750385252988,1.50889355,104920.0,104910.0,0.04607]
[1750385253197,1.49994914,104920.0,104910.0,0.04607]
[1750385253424,1.51783796,104920.0,104910.0,0.04607]
[1750385253688,1.50889355,104920.0,104910.0,0.04607]
[1750385253911,1.49994914,104920.0,104910.0,0.04607]
[1750385254351,1.51783797,104920.0,104910.0,0.04607]
[1750385255228,1.49994914,104920.0,104910.0,0.04607]
[1750385255447,1.1695693,104920.0,104910.0,0.04607]
[1750385255656,1.50889355,104920.0,104910.0,0.04607]
[1750385256070,1.52678256,104920.0,104910.0,0.04607]
[1750385258911,1.52678288,104920.0,104910.0,0.04607]
[1750385261318,1.52678324,104920.0,104910.0,0.04607]
[1750385264245,1.52678727,104920.0,104910.0,0.04607]
[1750385266218,1.5267911,104920.0,104910.0,0.04607]
[1750385267114,1.52679101,104920.0,104910.0,0.04607]
[1750385279569,1.526791,104920.0,104910.0,0.04607]
[1750385283268,1.333671,104920.0,104910.0,0.04607]
[1750385283487,1.19633116,104920.0,104910.0,0.04611]
[1750385283701,1.50881897,104920.0,104910.0,0.04611]
[1750385284567,1.48591719,104920.0,104910.0,0.04611]
[1750385285078,1.50881405,104920.0,104910.0,0.04611]
[1750385286102,1.48591719,104920.0,104910.0,0.04611]
[1750385289053,0.98155884,104920.0,104910.0,0.5861931]
[1750385289271,0.35565795,104920.0,104910.0,0.60525605]
[1750385289485,0.36577362,104920.0,104910.0,0.60525605]
[1750385290133,0.3751521,104920.0,104910.0,0.60525605]
[1750385291000,0.56577352,104920.0,104910.0,0.60525605]
[1750385292105,0.3751521,104920.0,104910.0,0.60525605]
[1750385292322,0.56577425,104920.0,104910.0,0.60525605]
[1750385295029,0.37515283,104920.0,104910.0,0.60525605]
[1750385296591,0.36562176,104920.0,104910.0,0.60525605]
[1750385298820,0.55624318,104920.0,104910.0,0.27487621]
[1750385299030,0.55624318,104920.0,104910.0,0.60525605]
[1750385299902,0.56577425,104920.0,104910.0,0.60525605]
[1750385301280,0.56577425,104920.0,104910.0,0.27487621]
[1750385301510,0.56577425,104920.0,104910.0,0.60525605]
[1750385301733,0.36562176,104920.0,104910.0,0.60525605]
[1750385302610,0.55624318,104920.0,104910.0,0.60525605]
[1750385303486,0.56577425,104920.0,104910.0,0.60525605]
[1750385306588,0.37515283,104920.0,104910.0,0.60525605]
[1750385306789,0.36562176,104920.0,104910.0,0.60525605]
[1750385307417,0.3465599,104920.0,104910.0,0.60525605]
[1750385308250,0.34655945,104920.0,104910.0,0.60525605]
[1750385308470,0.35609015,104920.0,104910.0,0.60525605]
[1750385310408,0.35609015,104920.0,104910.0,0.27487621]
[1750385310631,0.35609015,104920.0,104910.0,0.60525605]
[1750385310886,0.36562094,104920.0,104910.0,0.60525605]
[1750385312182,0.35609015,104920.0,104910.0,0.60525605]
[1750385312651,0.34655945,104920.0,104910.0,0.60525605]
[1750385312860,0.35609024,104920.0,104910.0,0.60525605]
[1750385313083,0.34655945,104920.0,104910.0,0.60525605]
[1750385313730,0.34655945,104920.0,104910.0,0.27487621]
[1750385313945,0.35609033,104920.0,104910.0,0.60525605]
[1750385314129,0.35609024,104920.0,104910.0,0.60525605]
[1750385315407,0.35609015,104920.0,104910.0,0.60525605]
[1750385316262,0.36562103,104920.0,104910.0,0.60525605]
[1750385316878,0.34655945,104920.0,104910.0,0.60525605]
[1750385317300,0.35609024,104920.0,104910.0,0.60525605]
[1750385318802,0.35609015,104920.0,104910.0,0.60525605]
[1750385326234,0.36562103,104920.0,104910.0,0.60525605]
[1750385328243,0.35609015,104920.0,104910.0,0.60525605]
[1750385328951,0.36562103,104920.0,104910.0,0.60525605]
[1750385329653,0.1300111,104920.0,104910.0,0.60525605]
[1750385329930,0.03812253,104920.0,104910.0,0.60525605]
[1750385330169,0.13812253,104920.0,104910.0,0.60525605]
[1750385330864,0.12859165,104920.0,104910.0,0.60525605]
[1750385331321,0.13812244,104920.0,104910.0,0.60525605]
[1750385332057,0.51207254,104930.0,104920.0,0.26145398]
[1750385332277,0.6162947,104930.0,104920.0,0.60136443]
[1750385332755,0.62582462,104930.0,104920.0,0.61089495]
[1750385333000,0.63535478,104930.0,104920.0,0.61089495]
[1750385333261,0.44247478,104930.0,104920.0,0.61089495]
[1750385333512,0.63635478,104930.0,104920.0,0.61089495]
[1750385333756,0.43394526,104930.0,104920.0,0.60136443]
[1750385333973,0.62682526,104930.0,104920.0,0.60136443]
[1750385334247,0.43394526,104930.0,104920.0,0.60136443]
[1750385334455,0.62682526,104930.0,104920.0,0.60136443]
[1750385334722,0.61888218,104930.0,104920.0,0.60136443]
[1750385336645,0.42600218,104930.0,104920.0,0.58230321]
[1750385336883,0.41647239,104930.0,104920.0,0.25192337]
[1750385337125,0.40694241,104930.0,104920.0,0.25192347]
[1750385337837,0.40694241,104930.0,104920.0,0.26145435]
[1750385338068,0.73732225,104930.0,104920.0,0.0411]
[1750385338301,0.10953098,104920.0,104910.0,0.74463435]
[1750385338527,0.01906177,104920.0,104910.0,0.75416569]
[1750385338945,0.02859219,104920.0,104910.0,0.75416569]
[1750385339393,0.23827511,104920.0,104910.0,0.74463435]
[1750385339829,0.22874468,104920.0,104910.0,0.74463435]
[1750385340049,0.22874468,104920.0,104910.0,0.74563435]
[1750385341089,0.22874468,104920.0,104910.0,0.41525451]
[1750385341346,0.22874468,104920.0,104910.0,0.59195435]
[1750385341642,0.03812326,104920.0,104910.0,0.75516569]
[1750385342825,0.02859219,104920.0,104910.0,0.75516569]
[1750385343592,0.01906131,104920.0,104910.0,0.75516569]
[1750385344306,0.21906131,104920.0,104910.0,0.75516569]
[1750385344789,0.02859219,104920.0,104910.0,0.75516569]
[1750385345760,0.22874459,104920.0,104910.0,0.75516569]
[1750385347400,0.23827566,104920.0,104910.0,0.75516569]
[1750385347601,0.22874514,104920.0,104910.0,0.74563435]
[1750385349179,0.22874514,104920.0,104910.0,0.74563444]
[1750385349387,0.22874514,104920.0,104910.0,0.75516587]
[1750385352157,0.22874514,104920.0,104910.0,0.4152546]
[1750385352370,0.22874514,104920.0,104910.0,0.74563444]
[1750385352798,0.21921435,104920.0,104910.0,0.74563444]
[1750385353839,0.21921435,104920.0,104910.0,0.73610292]
[1750385354062,0.21921435,104920.0,104910.0,0.25090308]
[1750385354257,0.21921435,104920.0,104910.0,0.001]
[1750385354258,0.72581126,104920.0,104910.0,0.001]
[1750385354696,0.73475121,104920.0,104910.0,0.001]
[1750385355115,0.72581126,104920.0,104910.0,0.001]
[1750385355324,0.73475128,104920.0,104910.0,0.001]
[1750385356648,0.75545128,104920.0,104910.0,0.001]
[1750385356912,0.74651126,104920.0,104910.0,0.001]
[1750385357116,0.72581126,104920.0,104910.0,0.001]
[1750385359306,0.82108111,104920.0,104910.0,0.001]
[1750385359522,0.72581126,104920.0,104910.0,0.001]
[1750385361708,1.06581126,104920.0,104910.0,0.001]
[1750385364754,1.06581126,104920.0,104910.0,0.00223]
[1750385367927,1.06581126,104920.0,104910.0,0.04263]
[1750385370330,1.3961911,104920.0,104910.0,0.001]
[1750385370557,1.44806269,104920.0,104910.0,0.001]
[1750385371012,1.47671069,104920.0,104910.0,0.001]
[1750385371225,1.44806269,104920.0,104910.0,0.001]
[1750385371649,1.48006843,104920.0,104910.0,0.001]
[1750385371864,1.44806269,104920.0,104910.0,0.001]
[1750385372094,1.47671169,104920.0,104910.0,0.001]
[1750385372294,1.47671025,104920.0,104910.0,0.001]
[1750385376442,1.4767094,104920.0,104910.0,0.001]
[1750385377629,0.96588972,104920.0,104910.0,0.001]
[1750385377856,1.26762056,104920.0,104910.0,0.04451]
[1750385378079,1.26762109,104920.0,104910.0,0.04451]
[1750385379370,1.07474109,104920.0,104910.0,0.04451]
[1750385379623,1.26774109,104920.0,104910.0,0.04451]
[1750385380271,1.25881126,104920.0,104910.0,0.04451]
[1750385380484,1.26774077,104920.0,104910.0,0.04451]
[1750385380721,1.25881126,104920.0,104910.0,0.04451]
[1750385380937,1.26774308,104920.0,104910.0,0.04451]
[1750385382053,1.26774312,104920.0,104910.0,0.04451]
[1750385383985,1.26774816,104920.0,104910.0,0.04451]
[1750385384436,1.26778816,104920.0,104910.0,0.04451]
[1750385386595,1.25885126,104920.0,104910.0,0.04451]
[1750385386815,1.26778855,104920.0,104910.0,0.04451]
[1750385388179,0.93740871,104920.0,104910.0,0.04451]
[1750385388390,1.26778855,104920.0,104910.0,0.04451]
[1750385392418,1.26778945,104920.0,104910.0,0.04451]
[1750385392834,1.59816929,104920.0,104910.0,0.0433]
[1750385393051,1.62105232,104920.0,104910.0,0.001]
[1750385393258,1.62105232,104920.0,104910.0,0.0199]
[1750385394280,1.62105232,104920.0,104910.0,0.0407]
[1750385395311,1.62105242,104920.0,104910.0,0.0407]
[1750385396732,1.64969842,104920.0,104910.0,0.0407]
[1750385397384,1.64969842,104920.0,104910.0,0.0199]
[1750385399079,0.98893874,104920.0,104910.0,0.0199]
[1750385399478,1.64969842,104920.0,104910.0,0.0199]
[1750385399915,1.64969842,104920.0,104910.0,0.0401]
[1750385401084,1.62681757,104920.0,104910.0,0.0401]
[1750385401286,1.64970486,104920.0,104910.0,0.0401]
[1750385402417,1.64970486,104920.0,104910.0,0.001]
[1750385403575,0.64017138,104910.0,104900.0,0.03891]
[1750385403797,1.13380292,104910.0,104900.0,0.22956776]
[1750385404018,0.79389138,104910.0,104900.0,0.03891]
[1750385404233,1.16351122,104910.0,104900.0,0.03891]
[1750385404672,1.16351122,104910.0,104900.0,0.04291]
[1750385405369,0.83313138,104910.0,104900.0,0.04291]
[1750385405615,1.16351122,104910.0,104900.0,0.04291]
[1750385412074,1.25879015,104910.0,104900.0,0.04291]
[1750385415339,0.92841031,104910.0,104900.0,0.04291]
[1750385415556,1.25879015,104910.0,104900.0,0.04291]
[1750385420710,1.26773568,104910.0,104900.0,0.04291]
[1750385421956,1.26773568,104910.0,104900.0,0.04166]
[1750385428508,1.26773578,104910.0,104900.0,0.04166]
[1750385429202,1.25879015,104910.0,104900.0,0.04166]
[1750385429438,1.2677358,104910.0,104900.0,0.04166]
[1750385431177,1.26773592,104910.0,104900.0,0.04166]
[1750385431402,0.93735608,104910.0,104900.0,0.04166]
[1750385431671,1.26773592,104910.0,104900.0,0.04166]
[1750385433995,1.26773612,104910.0,104900.0,0.04166]
[1750385434903,0.93735629,104910.0,104900.0,0.04166]
[1750385435094,1.29063797,104910.0,104900.0,0.04166]
[1750385435746,1.26773613,104910.0,104900.0,0.04166]
[1750385436398,1.3394121,104910.0,104900.0,0.04166]
[1750385436625,1.34835825,104910.0,104900.0,0.04166]
[1750385436841,1.2677363,104910.0,104900.0,0.04166]
[1750385437933,1.26773549,104910.0,104900.0,0.04166]
[1750385440768,1.26773504,104910.0,104900.0,0.04166]
[1750385443434,1.25879015,104910.0,104900.0,0.04166]
[1750385443654,1.26773504,104910.0,104900.0,0.04166]
[1750385446310,1.26773505,104910.0,104900.0,0.04166]
[1750385449222,1.26773516,104910.0,104900.0,0.04166]
[1750385450736,0.93735532,104910.0,104900.0,0.04166]
[1750385450976,1.26773516,104910.0,104900.0,0.04166]
[1750385454886,1.26773508,104910.0,104900.0,0.04166]
[1750385456050,0.93735524,104910.0,104900.0,0.04166]
[1750385456234,1.07477508,104910.0,104900.0,0.04166]
[1750385456478,0.93767524,104910.0,104900.0,0.04166]
[1750385457153,1.26805508,104910.0,104900.0,0.04166]